bitfinex-derivatives/quotes_SOLF0:USTF0_20250323
["timestamp","ask_amount","ask_price","bid_price","bid_amount"]
[1742746829313,7.59352408,132.65,132.63,26.88]
[1742746829503,0.05342408,132.65,132.63,26.88]
[1742746829703,0.05342408,132.65,132.63,34.4208]
[1742746831817,0.05342408,132.65,132.64,7.5405]
[1742746835119,0.05342408,132.65,132.64,9.65245015]
[1742746836420,0.05342408,132.65,132.63,36.53245015]
[1742746836621,0.05342408,132.65,132.63,44.07355015]
[1742746836822,0.05342408,132.65,132.64,9.65245015]
[1742746838925,7.59332408,132.65,132.64,9.65245015]
[1742746841623,7.5405,132.64,132.63,36.53245015]
[1742746841828,7.5405,132.64,132.63,26.88]
[1742746844528,7.5405,132.64,132.63,36.53245015]
[1742746845028,7.59362408,132.65,132.63,36.53245015]
[1742746846027,0.05342408,132.65,132.64,9.65245015]
[1742746846427,7.59332408,132.65,132.63,26.88]
[1742746846621,7.59332408,132.65,132.63,36.53245015]
[1742746847030,0.05342408,132.65,132.63,44.07305015]
[1742746847629,7.59362408,132.65,132.63,44.07305015]
[1742746848432,0.05342408,132.65,132.64,9.65245015]
[1742746848628,0.05342408,132.65,132.63,36.53245015]
[1742746848826,17.19295015,132.64,132.63,26.88]
[1742746849031,9.65245015,132.64,132.62,0.05123119]
[1742746849226,7.5445,132.57,132.55,132.36188459]
[1742746849534,7.5445,132.57,132.56,26.96108052]
[1742746849925,7.5445,132.57,132.56,10.49808369]
[1742746850127,7.5445,132.57,132.56,83.75573414]
[1742746850827,0.05169903,132.58,132.56,100.95288429]
[1742746851228,7.59569903,132.58,132.56,93.40818429]
[1742746851936,7.5445,132.57,132.56,93.40818429]
[1742746852138,7.5445,132.57,132.56,83.75573414]
[1742746853037,17.19695015,132.57,132.56,83.75573414]
[1742746853227,17.19695015,132.57,132.55,0.05349167]
[1742746853228,7.5451,132.56,132.55,0.05349167]
[1742746858336,11.74774918,132.58,132.55,0.05349167]
[1742746860139,7.5451,132.56,132.55,0.05349167]
[1742746863746,2.09529903,132.58,132.55,9.70594182]
[1742746863945,2.09529903,132.58,132.55,17.25144182]
[1742746864148,0.05169903,132.58,132.55,17.25144182]
[1742746864548,7.59559903,132.58,132.55,17.25144182]
[1742746864743,0.05169903,132.58,132.57,9.65245015]
[1742746865345,0.05169903,132.58,132.57,17.19695015]
[1742746865548,0.05169903,132.58,132.57,9.65245015]
[1742746866654,0.05169903,132.58,132.56,44.07725015]
[1742746867150,7.59569903,132.58,132.56,36.53245015]
[1742746868248,0.05169903,132.58,132.56,44.07745015]
[1742746870353,7.59569903,132.58,132.56,44.07745015]
[1742746873355,7.59569903,132.58,132.56,36.53245015]
[1742746873551,7.5445,132.57,132.56,26.88]
[1742746875256,7.59589903,132.58,132.56,26.88]
[1742746875456,0.05169903,132.58,132.56,26.88]
[1742746875658,9.70414918,132.58,132.55,0.05349167]
[1742746875955,7.5445,132.57,132.55,0.05349167]
[1742746876655,9.70414918,132.58,132.55,0.05349167]
[1742746877250,7.5445,132.57,132.55,0.05349167]
[1742746877556,0.05169903,132.58,132.56,9.65245015]
[1742746877851,359.0,132.63,132.57,36.53245015]
[1742746878052,9.65245015,132.65,132.61,9.65245015]
[1742746878263,9.65245015,132.66,132.62,9.65245015]
[1742746878454,7.5403,132.65,132.62,17.19375015]
[1742746878960,7.59653151,132.65,132.63,7.5411]
[1742746879258,0.05623151,132.65,132.63,7.5411]
[1742746879460,0.05623151,132.65,132.64,7.5405]
[1742746879760,0.05623151,132.65,132.64,34.4205]
[1742746880458,0.05623151,132.65,132.64,44.07295015]
[1742746880859,0.05623151,132.65,132.64,26.88]
[1742746883265,7.59613151,132.65,132.64,26.88]
[1742746883463,17.24858166,132.65,132.64,26.88]
[1742746883659,9.70868166,132.65,132.62,0.05691312]
[1742746883859,9.65245015,132.64,132.62,0.05691312]
[1742746884368,7.5411,132.63,132.62,0.05691312]
[1742746886964,9.65245015,132.64,132.62,0.05691312]
[1742746887157,9.70868166,132.65,132.62,0.05691312]
[1742746887666,7.541,132.64,132.62,0.05691312]
[1742746888167,7.59633151,132.65,132.62,17.25096327]
[1742746890668,7.59633151,132.65,132.62,44.13096327]
[1742746891270,7.5406,132.64,132.62,36.58936327]
[1742746891564,7.5406,132.64,132.62,26.93691312]
[1742746895072,7.5411,132.63,132.62,26.93691312]
[1742746895365,7.5411,132.63,132.62,0.05691312]
[1742746896073,17.19325015,132.64,132.62,0.05691312]
[1742746896372,0.05623151,132.65,132.63,7.541]
[1742746896571,7.59653151,132.65,132.62,36.56936327]
[1742746896968,0.05623151,132.65,132.63,7.541]
[1742746897676,0.05623151,132.65,132.62,44.11076327]
[1742746897879,0.05623151,132.65,132.63,9.65245015]
[1742746898666,0.05623151,132.65,132.63,17.19325015]
[1742746899176,0.05623151,132.65,132.64,9.65245015]
[1742746899477,0.05623151,132.65,132.64,17.19295015]
[1742746899679,368.65245015,132.71,132.64,9.65245015]
[1742746899867,368.65245015,132.71,132.67,9.65245015]
[1742746900273,7.5374,132.7,132.67,17.19095015]
[1742746900873,7.58499444,132.7,132.67,17.24548759]
[1742746901976,7.5378,132.69,132.67,0.05453744]
[1742746902179,9.65245015,132.69,132.67,0.05453744]
[1742746902881,9.65245015,132.68,132.67,0.05453744]
[1742746903177,17.19065015,132.68,132.67,0.05453744]
[1742746903569,17.19065015,132.68,132.67,3.744e-05]
[1742746903766,7.5405,132.64,132.63,26.86]
[1742746904973,0.05750969,132.65,132.62,9.7002547]
[1742746904974,7.5411,132.63,132.62,0.04780455]
[1742746905777,17.19355015,132.63,132.62,0.04780455]
[1742746906177,7.5436,132.59,132.57,20.13364385]
[1742746906376,7.5436,132.59,132.57,46.99364385]
[1742746906884,7.5431,132.6,132.57,54.53804385]
[1742746907388,7.59892795,132.6,132.57,44.11058599]
[1742746907883,7.5434,132.59,132.57,36.56618599]
[1742746908082,9.65245015,132.59,132.57,0.05373584]
[1742746908681,7.5439,132.58,132.57,0.05373584]
[1742746909085,17.19615015,132.59,132.57,0.05373584]
[1742746909281,7.5437,132.59,132.57,0.05373584]
[1742746911491,0.05582795,132.6,132.58,9.65245015]
[1742746912489,0.05582795,132.6,132.58,17.19585015]
[1742746912693,0.05582795,132.6,132.58,36.51245015]
[1742746912989,0.05582795,132.6,132.59,7.5434]
[1742746913580,0.05582795,132.6,132.59,17.19585015]
[1742746914594,0.05582795,132.6,132.59,9.65245015]
[1742746916690,0.05582795,132.6,132.59,17.19585015]
[1742746917991,359.0,132.64,132.62,7.5415]
[1742746918186,17.19205015,132.66,132.62,17.19395015]
[1742746918586,7.5392,132.67,132.63,17.19335015]
[1742746918793,15.79135015,132.68,132.64,9.65245015]
[1742746919093,0.04925565,132.67,132.65,0.05677253]
[1742746919290,17.19225015,132.66,132.65,0.05677253]
[1742746919486,36.51245015,132.66,132.61,285.33245015]
[1742746919682,9.65245015,132.65,132.61,285.33245015]
[1742746919890,7.5406,132.64,132.61,285.33245015]
[1742746920489,7.59100657,132.64,132.61,285.38351812]
[1742746921588,7.59100657,132.64,132.61,292.92571812]
[1742746921791,0.05040657,132.64,132.62,9.65245015]
[1742746922483,7.59100657,132.64,132.62,9.65245015]
[1742746924694,7.59100657,132.64,132.61,292.92541812]
[1742746925793,7.59100657,132.64,132.61,285.38351812]
[1742746926496,7.59100657,132.64,132.61,292.92571812]
[1742746927095,0.05040657,132.64,132.63,9.65245015]
[1742746927390,368.65245015,132.7,132.63,9.65245015]
[1742746927590,359.0,132.7,132.66,9.65245015]
[1742746927788,359.0,132.7,132.67,9.65245015]
[1742746927985,359.0,132.7,132.67,36.51245015]
[1742746928595,366.59390911,132.7,132.67,34.44879682]
[1742746928795,359.05640911,132.7,132.67,26.91029682]
[1742746929191,7.5377,132.69,132.67,26.91029682]
[1742746929389,359.05640911,132.7,132.67,26.91029682]
[1742746929794,366.59360911,132.7,132.67,26.91029682]
[1742746929997,359.05640911,132.7,132.67,26.91029682]
[1742746930393,7.5382,132.68,132.67,26.91029682]
[1742746931901,7.5382,132.68,132.67,0.05029682]
[1742746932087,7.5407,132.64,132.61,256.3621]
[1742746932286,7.5407,132.64,132.62,26.86]
[1742746932497,26.86,132.67,132.62,26.86]
[1742746933193,0.04795067,132.66,132.63,0.05795216]
[1742746933897,7.5406,132.64,132.63,0.05795216]
[1742746934297,7.5402,132.65,132.63,0.05795216]
[1742746934591,0.04795067,132.66,132.63,0.05795216]
[1742746935189,7.58765067,132.66,132.63,7.59905216]
[1742746935391,0.04795067,132.66,132.63,0.05795216]
[1742746935996,7.5399,132.65,132.63,0.05795216]
[1742746937697,7.58765067,132.66,132.63,0.05795216]
[1742746937896,0.04795067,132.66,132.63,0.05795216]
[1742746938399,0.04795067,132.66,132.63,7.59855216]
[1742746939398,7.58755067,132.66,132.63,7.59855216]
[1742746939597,0.04795067,132.66,132.63,0.05795216]
[1742746940895,0.04795067,132.66,132.64,7.5404]
[1742746941300,0.04795067,132.66,132.65,26.86]
[1742746941499,7.58735067,132.66,132.65,26.86]
[1742746941999,0.04795067,132.66,132.63,26.91795216]
[1742746942804,7.5405,132.64,132.63,26.91795216]
[1742746943398,7.5405,132.64,132.63,0.05795216]
[1742746943602,7.5416,132.62,132.61,248.82]
[1742746943804,41.89190631,132.63,132.57,26.86]
[1742746944002,15.03190631,132.61,132.56,248.76]
[1742746944400,26.86,132.6,132.56,248.76]
[1742746944700,7.5439,132.58,132.57,0.05217692]
[1742746945504,7.5451,132.56,132.55,10.4811937]
[1742746947712,7.5451,132.56,132.54,26.9117955]
[1742746948109,7.59450556,132.56,132.54,26.9117955]
[1742746948507,7.59450556,132.56,132.54,0.0517955]
[1742746949506,0.04940556,132.56,132.54,7.5978955]
[1742746953009,0.04940556,132.56,132.55,7.5456]
[1742746955114,0.04940556,132.56,132.54,0.0517955]
[1742746955611,7.5456,132.55,132.54,0.0517955]
[1742746957416,7.59470556,132.56,132.54,0.0517955]
[1742746960020,0.04940556,132.56,132.54,0.0517955]
[1742746962120,7.5456,132.55,132.54,0.0517955]
[1742746962321,0.04940556,132.56,132.54,0.0517955]
[1742746962621,7.5456,132.55,132.54,0.0517955]
[1742746963520,7.5472,132.53,132.51,248.76]
[1742746963722,0.04940556,132.56,132.51,248.76]
[1742746963723,15.03190631,132.57,132.51,248.76]
[1742746963923,15.03190631,132.55,132.5,26.88]
[1742746964121,41.91190631,132.55,132.5,26.88]
[1742746964522,0.05520074,132.54,132.51,0.05686987]
[1742746965815,0.05520074,132.54,132.52,7.5473]
[1742746966018,0.05520074,132.54,132.52,26.88]
[1742746966414,0.05520074,132.54,132.53,7.5468]
[1742746975027,0.05520074,132.54,132.52,283.3671]
[1742746978933,0.05520074,132.54,132.53,9.64028064]
[1742746980134,0.05520074,132.54,132.53,36.52028064]
[1742746981337,0.05520074,132.54,132.53,44.06708064]
[1742746983238,0.05520074,132.54,132.53,34.4268]
[1742746983832,0.05520074,132.54,132.53,26.88]
[1742746984233,7.60140074,132.54,132.53,26.88]
[1742746984431,7.60140074,132.54,132.52,248.94]
[1742746984634,7.60140074,132.54,132.52,275.82]
[1742746985838,7.5468,132.53,132.52,275.82]
[1742746986034,7.5468,132.53,132.52,248.94]
[1742746986240,9.64028064,132.53,132.51,0.05686987]
[1742746987439,7.5473,132.52,132.51,0.05686987]
[1742746991142,17.18758064,132.52,132.51,0.05686987]
[1742746991540,7.5473,132.52,132.51,0.05686987]
[1742747003348,17.18758064,132.52,132.51,0.05686987]
[1742747004146,0.05520074,132.54,132.51,9.69715051]
[1742747004444,0.05520074,132.54,132.53,9.64028064]
[1742747004640,0.05520074,132.54,132.53,17.18708064]
[1742747007348,0.05520074,132.54,132.53,266.16708064]
[1742747007752,7.4e-07,132.54,132.53,266.16708064]
[1742747007952,17.18278064,132.61,132.57,7.5441]
[1742747008152,17.18278064,132.61,132.57,34.4241]
[1742747008453,359.0,132.62,132.59,9.64028064]
[1742747008756,359.0,132.62,132.6,26.88]
[1742747008946,359.0,132.62,132.6,36.57394662]
[1742747009150,359.05185118,132.62,132.6,44.11614662]
[1742747009450,359.05185118,132.62,132.6,26.93366598]
[1742747009754,376.23383182,132.62,132.6,26.93366598]
[1742747009951,368.69213182,132.62,132.6,26.93366598]
[1742747010251,17.18248064,132.61,132.6,0.05366598]
[1742747014555,17.18248064,132.61,132.56,26.86]
[1742747014556,9.64028064,132.61,132.56,26.86]
[1742747014750,7.5442,132.58,132.56,26.86]
[1742747015152,7.5442,132.58,132.55,9.64028064]
[1742747015658,7.5436,132.59,132.56,9.64028064]
[1742747015859,0.05215856,132.58,132.56,9.64028064]
[1742747017258,7.59625856,132.58,132.55,9.69376149]
[1742747017461,7.59625856,132.58,132.55,36.55376149]
[1742747017759,7.59625856,132.58,132.55,44.09936149]
[1742747018655,0.05215856,132.58,132.56,17.18538064]
[1742747019160,7.59645856,132.58,132.55,34.45888085]
[1742747019360,0.05215856,132.58,132.56,9.64028064]
[1742747020060,7.5448,132.57,132.55,36.55376149]
[1742747020357,9.6924392,132.58,132.55,0.05348085]
[1742747020551,9.64028064,132.57,132.55,0.05348085]
[1742747020750,17.18538064,132.56,132.55,0.05348085]
[1742747021755,17.18538064,132.56,132.55,8.085e-05]
[1742747024765,376.18538064,132.56,132.55,8.085e-05]
[1742747025561,359.0,132.56,132.55,8.085e-05]
[1742747025759,359.0,132.56,132.55,9.64036149]
[1742747026069,359.0,132.56,132.55,8.085e-05]
[1742747026866,366.5451,132.56,132.55,8.085e-05]
[1742747027771,359.0,132.56,132.55,8.085e-05]
[1742747028367,366.5451,132.56,132.55,8.085e-05]
[1742747030473,7.5451,132.56,132.55,8.085e-05]
[1742747031067,9.6924392,132.58,132.55,8.085e-05]
[1742747031068,7.5446,132.57,132.55,8.085e-05]
[1742747031272,9.6924392,132.58,132.55,8.085e-05]
[1742747031469,7.5449,132.57,132.55,8.085e-05]
[1742747031874,0.05215856,132.58,132.56,9.64028064]
[1742747032075,0.05215856,132.58,132.56,36.50028064]
[1742747032677,0.05215856,132.58,132.57,9.64028064]
[1742747033166,0.05215856,132.58,132.57,17.18478064]
[1742747033571,359.0,132.61,132.57,9.64028064]
[1742747033774,9.64028064,132.63,132.59,9.64028064]
[1742747033975,9.64028064,132.63,132.6,26.86]
[1742747034371,7.5419,132.62,132.6,26.86]
[1742747034678,7.59271787,132.62,132.6,36.55763549]
[1742747034871,7.59271787,132.62,132.6,26.91735485]
[1742747035268,7.5422,132.61,132.6,26.91735485]
[1742747036878,7.5422,132.61,132.6,0.05735485]
[1742747038873,17.18248064,132.61,132.6,0.05735485]
[1742747039575,7.5445,132.57,132.56,26.86]
[1742747041290,7.5445,132.57,132.55,36.55346188]
[1742747044989,7.5451,132.56,132.55,36.55346188]
[1742747045887,7.5451,132.56,132.55,0.05318124]
[1742747046088,7.5451,132.56,132.55,26.91318124]
[1742747047195,17.18498064,132.57,132.55,26.91318124]
[1742747047396,7.5447,132.57,132.55,26.91318124]
[1742747048199,7.5451,132.56,132.55,26.91318124]
[1742747048492,9.68807191,132.58,132.55,26.91318124]
[1742747048694,7.5448,132.57,132.55,26.91318124]
[1742747049796,7.5451,132.56,132.55,26.91318124]
[1742747051496,7.5447,132.57,132.55,26.91318124]
[1742747054994,7.5451,132.56,132.55,26.91318124]
[1742747060802,0.04779127,132.58,132.55,26.91318124]
[1742747061201,7.5446,132.57,132.55,36.55346188]
[1742747063203,7.5446,132.57,132.55,26.91318124]
[1742747066507,7.5451,132.56,132.55,26.91318124]
[1742747066908,9.68807191,132.58,132.55,26.91318124]
[1742747068008,7.5445,132.57,132.55,26.91318124]
[1742747068509,7.5451,132.56,132.55,26.91318124]
[1742747069303,7.5446,132.57,132.55,26.91318124]
[1742747069708,7.5446,132.57,132.55,34.45868124]
[1742747070007,7.59199127,132.58,132.55,34.45868124]
[1742747073113,7.5446,132.57,132.55,26.91318124]
[1742747074713,7.5451,132.56,132.55,26.91318124]
[1742747079919,28.8212,132.62,132.55,26.91318124]
[1742747079920,359.0,132.65,132.55,34.45318124]
[1742747080115,359.0,132.65,132.6,9.64028064]
[1742747080414,359.0,132.65,132.61,26.86]
[1742747080719,359.0,132.65,132.61,36.50028064]
[1742747081114,0.04950445,132.64,132.62,0.05379213]
[1742747081320,0.04950445,132.64,132.62,9.69407277]
[1742747081916,0.04950445,132.64,132.62,0.05379213]
[1742747083511,9.64028064,132.63,132.62,0.05379213]
[1742747084216,17.18138064,132.63,132.62,0.05379213]
[1742747085415,9.64028064,132.63,132.58,292.96408064]
[1742747085614,9.64028064,132.62,132.58,292.96408064]
[1742747085819,7.5425,132.61,132.57,44.04438064]
[1742747086318,9.64028064,132.61,132.57,44.04438064]
[1742747086519,7.59901414,132.6,132.58,0.05344814]
[1742747087421,7.59901414,132.6,132.58,7.59734814]
[1742747088020,0.05611414,132.6,132.58,7.59734814]
[1742747088224,0.05611414,132.6,132.59,7.5434]
[1742747089723,0.05611414,132.6,132.59,17.18368064]
[1742747090520,17.18048064,132.65,132.62,7.5413]
[1742747090720,17.18048064,132.65,132.61,36.50028064]
[1742747091226,17.18048064,132.65,132.62,7.5412]
[1742747091720,17.23067189,132.65,132.62,7.59119209]
[1742747091917,7.59039125,132.65,132.62,7.59119209]
[1742747093036,17.23067189,132.65,132.62,7.59119209]
[1742747093727,7.5408,132.64,132.62,0.04999209]
[1742747094235,17.18138064,132.63,132.62,0.04999209]
[1742747095436,7.5411,132.63,132.62,0.04999209]
[1742747097525,26.91019125,132.65,132.62,17.23177273]
[1742747097825,0.05019125,132.65,132.62,36.53027273]
[1742747098364,0.05019125,132.65,132.63,7.5411]
[1742747100250,0.05019125,132.65,132.63,17.18138064]
[1742747103835,0.05019125,132.65,132.63,7.5411]
[1742747104233,7.59029125,132.65,132.62,44.07167273]
[1742747104532,0.05019125,132.65,132.62,44.07167273]
[1742747104932,9.69047189,132.65,132.62,0.04999209]
[1742747105135,9.64028064,132.63,132.62,0.04999209]
[1742747105435,17.18138064,132.63,132.62,0.04999209]
[1742747112735,7.5422,132.61,132.6,248.84]
[1742747112939,9.64028064,132.61,132.56,44.02508064]
[1742747113137,9.64028064,132.6,132.56,44.02508064]
[1742747113338,9.64028064,132.6,132.56,36.48028064]
[1742747113539,9.64028064,132.6,132.57,7.5443]
[1742747113840,9.69495744,132.6,132.57,7.60082203]
[1742747114537,7.5434,132.59,132.57,0.05652203]
[1742747115140,7.5439,132.58,132.57,0.05652203]
[1742747118437,0.0546768,132.6,132.57,17.23680267]
[1742747118742,359.0,132.67,132.59,9.64028064]
[1742747119039,359.0,132.67,132.64,9.64028064]
[1742747119236,359.0,132.67,132.64,36.56028064]
[1742747119642,366.58873378,132.67,132.64,36.61294797]
[1742747120742,376.22901442,132.67,132.64,26.97266733]
[1742747121141,7.5395,132.66,132.64,26.97266733]
[1742747121541,368.69021442,132.67,132.64,26.97266733]
[1742747121742,376.22931442,132.67,132.64,26.97266733]
[1742747123942,376.22931442,132.67,132.64,34.51306733]
[1742747125947,376.22931442,132.67,132.65,7.5399]
[1742747127448,368.69021442,132.67,132.65,7.5399]
[1742747129246,376.22901442,132.67,132.64,34.51286733]
[1742747130148,17.17968064,132.66,132.64,26.97266733]
[1742747130844,7.5394,132.66,132.64,26.97266733]
[1742747131038,366.58903378,132.67,132.64,34.51306733]
[1742747131947,359.04993378,132.67,132.65,7.5399]
[1742747132652,368.69021442,132.67,132.64,26.97266733]
[1742747133147,368.69021442,132.67,132.64,34.51316733]
[1742747133148,7.5397,132.66,132.64,34.51316733]
[1742747133550,368.69021442,132.67,132.64,34.51316733]
[1742747134049,376.22931442,132.67,132.64,34.51316733]
[1742747137450,7.5395,132.66,132.64,34.51316733]
[1742747137650,9.64028064,132.66,132.64,26.97266733]
[1742747137850,368.69021442,132.67,132.64,26.97266733]
[1742747138154,7.5397,132.66,132.64,26.97266733]
[1742747140054,368.69021442,132.67,132.64,26.97266733]
[1742747140055,17.18018064,132.65,132.64,0.05266733]
[1742747140257,7.5399,132.65,132.64,0.05266733]
[1742747141150,359.04993378,132.67,132.64,9.69294797]
[1742747141858,366.58903378,132.67,132.64,17.23314797]
[1742747142156,366.58903378,132.67,132.65,7.5399]
[1742747142357,359.04993378,132.67,132.65,44.02018064]
[1742747142560,359.04993378,132.67,132.66,9.64028064]
[1742747142950,0.04993378,132.67,132.66,17.17968064]
[1742747146960,0.04993378,132.67,132.66,9.64028064]
[1742747147456,0.04993378,132.67,132.65,36.48028064]
[1742747147662,0.04993378,132.67,132.65,26.84]
[1742747148158,0.04993378,132.67,132.65,36.48028064]
[1742747148966,0.04993378,132.67,132.66,9.64028064]
[1742747150066,0.04993378,132.67,132.66,17.17968064]
[1742747150366,0.04993378,132.67,132.66,9.64028064]
[1742747152465,0.04993378,132.67,132.64,0.05266733]
[1742747152669,9.69021442,132.67,132.64,26.89266733]
[1742747154281,7.5399,132.65,132.64,26.89266733]
[1742747156065,17.18018064,132.65,132.64,0.05266733]
[1742747159706,7.5399,132.65,132.64,0.05266733]
[1742747160202,7.5396,132.66,132.64,0.05266733]
[1742747160392,9.69021442,132.67,132.64,0.05266733]
[1742747160596,0.04993378,132.67,132.64,0.05266733]
[1742747160895,7.58903378,132.67,132.65,9.64028064]
[1742747161091,0.04993378,132.67,132.64,36.53294797]
[1742747162071,7.5394,132.66,132.64,36.53294797]
[1742747162874,7.58893378,132.67,132.64,44.07334797]
[1742747163570,7.58893378,132.67,132.65,17.18008064]
[1742747163770,0.04993378,132.67,132.66,9.64028064]
[1742747164474,0.04993378,132.67,132.66,17.17968064]
[1742747165776,0.04993378,132.67,132.66,9.64028064]
[1742747167579,7.58873378,132.67,132.66,9.64028064]
[1742747168075,0.04993378,132.67,132.66,9.64028064]
[1742747168375,0.04993378,132.67,132.66,17.17968064]
[1742747168567,0.04993378,132.67,132.66,9.64028064]
[1742747169473,0.04993378,132.67,132.66,17.17968064]
[1742747170667,0.04993378,132.67,132.66,9.64028064]
[1742747171273,7.58873378,132.67,132.66,9.64028064]
[1742747171474,7.58873378,132.67,132.65,9.64028064]
[1742747172880,0.04993378,132.67,132.65,17.17988064]
[1742747173082,0.04993378,132.67,132.66,9.64028064]
[1742747173575,0.04993378,132.67,132.66,17.17968064]
[1742747173778,0.04993378,132.67,132.66,9.64028064]
[1742747174278,0.04993378,132.67,132.65,17.17998064]
[1742747176673,0.04993378,132.67,132.66,17.17968064]
[1742747184797,361.0656,132.72,132.69,7.5373]
[1742747184991,361.0656,132.72,132.69,44.01758064]
[1742747185897,370.70588064,132.72,132.69,26.84]
[1742747186098,370.75367935,132.72,132.69,26.88973335]
[1742747186398,7.5371,132.7,132.69,26.88973335]
[1742747187700,370.75367935,132.72,132.69,26.88973335]
[1742747187701,7.5367,132.71,132.69,26.88973335]
[1742747188498,7.5371,132.7,132.69,26.88973335]
[1742747189201,7.5371,132.7,132.69,0.04973335]
[1742747189707,17.17738064,132.7,132.69,0.04973335]
[1742747190298,7.5382,132.68,132.67,26.82]
[1742747190610,9.64028064,132.69,132.65,36.46028064]
[1742747191202,7.5391,132.67,132.65,36.46028064]
[1742747191405,7.5391,132.67,132.66,0.05719334]
[1742747191906,7.59444351,132.68,132.66,9.69747398]
[1742747192102,0.05594351,132.68,132.66,9.69747398]
[1742747192303,0.05594351,132.68,132.67,9.64028064]
[1742747192909,0.05594351,132.68,132.67,17.17908064]
[1742747195412,2.0434,132.75,132.72,7.5359]
[1742747195413,4.0593,132.75,132.72,7.5359]
[1742747195612,4.0593,132.75,132.72,43.99618064]
[1742747196113,11.5939,132.75,132.72,43.99618064]
[1742747196307,13.69958064,132.75,132.72,26.82]
[1742747196503,13.74898658,132.75,132.72,26.87156076]
[1742747196710,7.5354,132.73,132.72,26.87156076]
[1742747196916,17.17568064,132.73,132.72,0.05156076]
[1742747201210,9.64028064,132.73,132.66,7.5391]
[1742747201414,9.64028064,132.7,132.66,9.64028064]
[1742747201612,9.64028064,132.7,132.66,36.46028064]
[1742747201816,7.5385,132.68,132.66,36.46028064]
[1742747202218,36.46028064,132.71,132.67,9.64028064]
[1742747202514,7.58699426,132.68,132.67,9.64028064]
[1742747203020,0.04879426,132.68,132.67,9.64028064]
[1742747204722,7.58699426,132.68,132.67,9.64028064]
[1742747205430,0.04879426,132.68,132.67,9.64028064]
[1742747205818,0.04879426,132.68,132.67,17.17908064]
[1742747206021,0.04879426,132.68,132.67,9.64028064]
[1742747206622,7.58699426,132.68,132.67,9.64028064]
[1742747207122,0.04879426,132.68,132.67,9.64028064]
[1742747209125,0.04879426,132.68,132.67,17.17908064]
[1742747209429,0.04879426,132.68,132.67,9.64028064]
[1742747209722,7.58699426,132.68,132.67,9.64028064]
[1742747210620,7.58699426,132.68,132.66,44.0549898]
[1742747211023,0.04879426,132.68,132.67,17.17908064]
[1742747211226,0.04879426,132.68,132.67,9.64028064]
[1742747212026,0.04879426,132.68,132.66,34.41470916]
[1742747212027,0.04879426,132.68,132.66,44.0549898]
[1742747214625,7.58709426,132.68,132.66,44.0549898]
[1742747216536,0.04879426,132.68,132.66,44.0549898]
[1742747218430,7.58709426,132.68,132.66,44.0549898]
[1742747220435,7.5388,132.67,132.66,0.05560916]
[1742747221741,17.17908064,132.67,132.66,0.05560916]
[1742747222140,7.5405,132.65,132.63,285.16028064]
[1742747222340,9.64028064,132.67,132.63,285.16028064]
[1742747222341,9.64028064,132.67,132.63,265.88138064]
[1742747222735,7.5397,132.66,132.63,265.88138064]
[1742747223338,7.59036029,132.66,132.63,265.93831735]
[1742747224441,7.59036029,132.66,132.64,17.18058064]
[1742747224636,0.05066029,132.66,132.64,9.64028064]
[1742747224837,0.05066029,132.66,132.65,26.82]
[1742747225541,0.05066029,132.66,132.65,34.3599]
[1742747225836,0.05066029,132.66,132.65,26.82]
[1742747226041,7.59006029,132.66,132.65,26.82]
[1742747227747,7.59006029,132.66,132.64,9.64028064]
[1742747229050,7.59006029,132.66,132.64,17.18068064]
[1742747232446,7.59006029,132.66,132.63,292.75801735]
[1742747232971,7.5401,132.65,132.63,275.57693671]
[1742747233151,9.69094093,132.66,132.63,275.57693671]
[1742747234052,17.23064093,132.66,132.63,283.11773671]
[1742747236246,17.23064093,132.66,132.64,7.5404]
[1742747236452,7.59036029,132.66,132.64,7.5404]
[1742747237353,7.59036029,132.66,132.63,283.11773671]
[1742747238451,7.54,132.65,132.63,285.21721735]
[1742747241054,7.54,132.65,132.63,292.75821735]
[1742747242156,7.59036029,132.66,132.63,292.75821735]
[1742747244360,7.59036029,132.66,132.64,7.5405]
[1742747245157,0.05066029,132.66,132.65,7.5399]
[1742747245553,0.05066029,132.66,132.65,17.18018064]
[1742747247156,0.05066029,132.66,132.65,7.5399]
[1742747247355,0.05066029,132.66,132.64,17.18048064]
[1742747247954,7.59016029,132.66,132.64,17.18048064]
[1742747248859,0.05066029,132.66,132.65,7.5399]
[1742747252961,0.05066029,132.66,132.65,17.18018064]
[1742747254662,0.05066029,132.66,132.65,7.5399]
[1742747257159,0.05066029,132.66,132.65,17.18018064]
[1742747257363,0.05066029,132.66,132.65,9.64028064]
[1742747257563,7.59006029,132.66,132.64,17.18048064]
[1742747260756,0.05066029,132.66,132.64,17.18048064]
[1742747262067,0.05066029,132.66,132.65,7.5399]
[1742747263669,0.05066029,132.66,132.64,17.18048064]